Cogmind - Beta 11.1 @@@ ROGUE MODE // 2022.11.23 @ 15:18:21 Player: Horse Result: Destroyed by G-34 Mercenary with Small Laser Performance ------------- Evolutions (1) 500 Regions Visited (4) 800 Robots Destroyed (45) 225 Value Destroyed (967) 967 Prototype IDs (7) 140 Alien Tech Used (0) 0 Bonus (733) 733 TOTAL SCORE: 3365 Bonus ------- Pacifist 200 High Alert Combat Kills 34 Follower Combat Kills 299 Entered Garrisons 200 Cogmind --------- Core Integrity 0/400 Matter 274/300 Energy 100/125 System Corruption 0% Temperature Hot (207) Movement Rolling (80) Location -9/Garrison Parts ------- > --- POWER (1) -------- Light Ion Engine > --- PROPULSION (2) --- Titanium Leg Wheel > --- UTILITY (4) ------ Cryofiber Web Advanced Targeting Computer Core Shielding > --- WEAPON (2) ------- (None) > --- INVENTORY (5) ---- Heavy Ion Engine Salvage Targeting Computer Advanced Targeting Computer Peak State ------------ > --- POWER ------------ Heavy Ion Engine > --- PROPULSION ------- Light Treads Titanium Leg > --- UTILITY ---------- Cryofiber Web Medium Storage Unit Advanced Targeting Computer Improved Weapon Shielding > --- WEAPON ----------- Advanced Beam Cannon Advanced Beam Cannon > --- INVENTORY -------- Titanium Leg Titanium Leg Titanium Leg Wheel Salvage Targeting Computer Advanced Targeting Computer Core Shielding Shield Generator Drone Bay [Rating: 25] Favorites ----------- Power Heavy Ion Engine Engine Heavy Ion Engine Power Core Nuclear Core Propulsion Wheel Treads Improved Treads Leg Aluminum Leg Wheel Wheel Utility Hacking Suite Device Cryofiber Web Storage Medium Storage Unit Processor Advanced Targeting Computer Hackware Hacking Suite Protection Improved Weapon Shielding Weapon Advanced Beam Cannon Energy Gun Improved Medium Laser Energy Cannon Advanced Beam Cannon Ballistic Gun Assault Rifle Ballistic Cannon Improved Light Cannon Build | -11 -10 -9 -9 -9 ------- Run | Scr Mat Mat Sto Gar Slots Evolved 2 | . . 2 . . Power . | . . . . . Propulsion . | . . . . . Utility 2 | . . 2 . . Weapon . | . . . . . Parts Attached 57 | 4 4 33 8 8 Power 5 | 1 . 3 . 1 Engine 4 | 1 . 2 . 1 Core 1 | . . 1 . . Reactor . | . . . . . Propulsion 32 | 2 2 20 4 4 Treads 12 | . . 9 2 1 Leg 7 | 2 . 3 . 2 Wheel 13 | . 2 8 2 1 Hover . | . . . . . Flight . | . . . . . Utility 9 | 1 . 5 . 3 Device 2 | . . 1 . 1 Storage 2 | 1 . 1 . . Processor 2 | . . 2 . . Hackware 1 | . . 1 . . Protection 2 | . . . . 2 Artifact . | . . . . . Weapon 11 | . 2 5 4 . Energy Gun 2 | . 1 1 . . Energy Cannon 5 | . . 2 3 . Ballistic Gun 3 | . 1 1 1 . Ballistic Cannon 1 | . . 1 . . Launcher . | . . . . . Special Weapon . | . . . . . Impact Weapon . | . . . . . Slashing Weapon . | . . . . . Piercing Weapon . | . . . . . Special Melee Weapon . | . . . . . Unidentified Prototypes 4 | . . 3 1 . Parts Lost 9 | . . 2 1 6 Power 1 | . . 1 . . Propulsion 4 | . . 1 1 2 Utility 2 | . . . . 2 Weapon 2 | . . . . 2 Highest Loss Streak 3 | . . 1 1 3 To Critical Strikes . | . . . . . Average Slot Usage (%) 91 | . 74 91 94 88 Engine 8 | . 14 4 11 11 Core 2 | . . 6 . . Treads 6 | . . 11 4 1 Wheel 12 | . 28 10 13 7 Device 9 | . . 8 11 12 Storage 10 | . 14 11 11 7 Processor 8 | . . 7 11 11 Hackware 9 | . . 10 11 5 Energy Gun 4 | . 9 9 . . Energy Cannon 14 | . . 10 19 19 Ballistic Gun 2 | . 8 2 1 . Naked Turns . | . . . . . Heaviest Build 29 | 8 12 25 27 29 Greatest Support 46 | 20 26 46 43 34 Greatest Overweight (x) 2 | . . 1 2 2 Average Overweight (x) . | . . . 1 1 Largest Inventory Capacity 10 | 8 8 10 10 10 Average Capacity 9 | 6 8 9 10 8 Most Carried 10 | 8 8 10 10 10 Average Carried 8 | 4 7 8 9 8 Final Capacity 10 | 8 8 10 10 5 Final Carried 10 | 8 7 10 10 3 Class Distribution -------------------- 100% | Mutant Dominant Class ---------------- Mutant | -10/Materials Mutant | -9/Materials Mutant | -9/Storage Mutant | -9/Garrison Resources | -11 -10 -9 -9 -9 ----------- Run | Scr Mat Mat Sto Gar Matter Collected 768 | 214 . 416 90 48 Remotely . | . . . . . Salvage Created 1721 | . . 1091 511 119 Parts 110 | . . 69 30 11 Haulers Intercepted 9 | . . 4 5 . Recyclers Shooed 2 | . . 2 . . Parts Field Recycled . | . . . . . Retrieved Matter . | . . . . . Parts Self-Destructed . | . . . . . Prevented . | . . . . . Kills | -11 -10 -9 -9 -9 ------- Run | Scr Mat Mat Sto Gar Combat Hostiles Destroyed 33 | . . 21 6 6 Guns 12 | . . 12 . . Cannons 19 | . . 8 5 6 Classes Destroyed 6 | . . 6 . . Hauler 9 | . . 4 5 . Recycler 2 | . . 2 . . Operator 1 | . . 1 . . Swarmer 13 | . . 8 . 5 Grunt 15 | . . 9 5 1 Sentry 5 | . . 4 1 . Best Kill Streak 7 | . . 7 3 3 Combat Bots Only 6 | . . 6 2 3 Max Kills in Single Turn 1 | . . 1 1 1 Gunslinging . | . . . . . Exploded . | . . . . . Melee . | . . . . . Uniques/NPCs Destroyed . | . . . . . Combat | -11 -10 -9 -9 -9 -------- Run | Scr Mat Mat Sto Gar Damage Taken 2052 | . . 750 215 1087 Core 406 | . . 126 45 235 Absorbed by Shields 69 | . . . . 69 Redirected to Shielding 133 | . . . . 133 Regen/Repaired (Parts) 43 | . . . 43 . Core Remaining (%) 100 | 100 100 . . . Volleys Fired 108 | . . 57 28 23 Largest 2 | . . 2 2 2 Hottest 136 | . . 124 136 136 Shots Fired 199 | . . 112 56 31 Gun 61 | . . 61 . . Cannon 138 | . . 51 56 31 Launcher . | . . . . . Special . | . . . . . Kinetic 11 | . . 11 . . Thermal 188 | . . 101 56 31 Explosive . | . . . . . Electromagnetic . | . . . . . Robot Hit Streak 20 | . . 20 11 9 Robot Miss Streak 4 | . . 4 4 3 Penetration Max . | . . . . . Secondary Targets 2 | . . 2 . . Max Gunslinging Chain 1 | . . 1 . . Shots Hit Robots 134 | . . 80 36 18 Core Hits 52 | . . 35 10 7 Critical Kills 1 | . . . 1 . Critical Parts Destroyed . | . . . . . Critical Strikes 3 | . . 2 1 . Burn 2 | . . 2 . . Meltdown 1 | . . . 1 . Melee Attacks . | . . . . . Impact . | . . . . . Slashing . | . . . . . Piercing . | . . . . . Sneak Attacks . | . . . . . Combat Hostiles . | . . . . . Follow-up Attacks . | . . . . . Damage Inflicted 2567 | . . 1441 759 367 Guns 763 | . . 763 . . Cannons 1801 | . . 678 759 364 Explosions . | . . . . . Melee . | . . . . . Ramming 3 | . . . . 3 Kinetic 84 | . . 84 . . Thermal 2480 | . . 1357 759 364 Explosive . | . . . . . Electromagnetic . | . . . . . Impact . | . . . . . Slashing . | . . . . . Piercing . | . . . . . Highest Corruption . | . . . . . Average Corruption . | . . . . . Corruption Purged . | . . . . . Corruption Blocked . | . . . . . Overload Shots . | . . . . . Overflow Damage 14 | . . . 13 1 Projectiles 14 | . . . 13 1 Explosions . | . . . . . Melee . | . . . . . Knockbacks . | . . . . . Impact . | . . . . . Kinetic . | . . . . . Secondary . | . . . . . Self-Inflicted Damage . | . . . . . Shots . | . . . . . Rammed 1 | . . . . 1 Targets Rammed 2 | . . . . 2 Kicked 1 | . . . . 1 Crushed . | . . . . . Highest Temperature 531 | . . 310 317 531 Average Temperature 156 | . . 111 124 340 Received Heat Transfer 588 | . . 195 105 288 Effects 7 | . . . 3 4 Energy Bleed 1 | . . . 1 . Interference 2 | . . . 2 . Matter Decay 1 | . . . . 1 Short Circuit 2 | . . . . 2 Damage (minor) 1 | . . . . 1 Siege Activations . | . . . . . Robots Corrupted . | . . . . . Combat Hostiles . | . . . . . Parts Fried . | . . . . . Impact Corruptions . | . . . . . Robots Melted 2 | . . 1 1 . Combat Hostiles 2 | . . 1 1 . Parts Melted 14 | . . 8 4 2 Heat Transferred 4919 | . . 2923 1369 627 Parts Sabotaged . | . . . . . Parts Stolen . | . . . . . Parts Stripped . | . . . . . Power Chain Reactions . | . . . . . Missiles Intercepted . | . . . . . Alert | -11 -10 -9 -9 -9 ------- Run | Scr Mat Mat Sto Gar Peak Influence 791 | . . 394 791 619 Initial 514 | . . . 150 514 Average 286 | . . 192 396 534 Maximum Alert Level 3 | . . 1 3 2 Low Security (%) 41 | 100 100 57 19 . Level 1 31 | . . 42 39 . Level 2 21 | . . . 26 100 Level 3 5 | . . . 13 . Level 4 . | . . . . . Level 5 . | . . . . . High Security . | . . . . . Max Security . | . . . . . Squads Dispatched 4 | . . 2 2 . Investigation 3 | . . 1 2 . Extermination . | . . . . . Reinforcement 1 | . . 1 . . Assault . | . . . . . Garrison . | . . . . . Intercept . | . . . . . Searches Triggered . | . . . . . Construction Impeded . | . . . . . Haulers Reinforced . | . . . . . Active Scanning Responses . | . . . . . Cargo Convoy Interrupts . | . . . . . Stealth | -11 -10 -9 -9 -9 --------- Run | Scr Mat Mat Sto Gar Distress Signals 6 | . . 1 5 . Communications Jammed . | . . . . . Distress Signals . | . . . . . Times Spotted 69 | . . 32 24 13 Peak Tracking Total 10 | . . 6 5 10 Tactical Retreats 8 | . . 4 3 1 Traps | -11 -10 -9 -9 -9 ------- Run | Scr Mat Mat Sto Gar Traps Triggered . | . . . . . Indirectly . | . . . . . Trap Hack Attempts . | . . . . . Triggered . | . . . . . Disarmed . | . . . . . Reprogrammed . | . . . . . Reused . | . . . . . Traps Extracted . | . . . . . Installed . | . . . . . Triggered 2 | . . . 2 . Machines | -11 -10 -9 -9 -9 ---------- Run | Scr Mat Mat Sto Gar Machines Disabled 3 | . . 1 2 . Max in Single Turn 1 | . . 1 1 . Machines Sabotaged . | . . . . . Garrisons Compromised . | . . . . . Overloaded Fab Kills . | . . . . . Hacking | -11 -10 -9 -9 -9 --------- Run | Scr Mat Mat Sto Gar Machines Accessed 17 | . 1 3 13 . Terminals 12 | . 1 2 9 . Fabricators . | . . . . . Repair Stations 1 | . . . 1 . Recycling Units 2 | . . . 2 . Scanalyzers 1 | . . 1 . . Garrison Access 1 | . . . 1 . Total Hacks 49 | . 2 13 34 . Successful 34 | . . 10 24 . Failed 15 | . 2 3 10 . Catastrophic 1 | . . . 1 . Database Lockouts . | . . . . . Manual 15 | . . 2 13 . Terminals 27 | . 2 5 20 . Fabricators . | . . . . . Repair Stations 3 | . . . 3 . Recycling Units 10 | . . . 10 . Scanalyzers 8 | . . 8 . . Garrison Access 1 | . . . 1 . Terminal Hacks 13 | . . 2 11 . Robot Analysis 1 | . . . 1 . Prototype ID Bank 2 | . . . 2 . Open Door 4 | . . . 4 . Branch Access Points 1 | . . 1 . . Terminal Index 1 | . . . 1 . Unreport Threat 1 | . . 1 . . Locate Traps 1 | . . . 1 . Hauler Manifests 1 | . . . 1 . Zone Layout 1 | . . . 1 . Fabricator Hacks . | . . . . . Repair Station Hacks 2 | . . . 2 . Scan Component 1 | . . . 1 . Repair 1 | . . . 1 . Recycling Unit Hacks 1 | . . . 1 . Retrieve Components 1 | . . . 1 . Scanalyzer 8 | . . 8 . . Insert Component 4 | . . 4 . . Analyze 4 | . . 4 . . Garrison Access Hacks 1 | . . . 1 . Unlock Access 1 | . . . 1 . Unauthorized Hacks 9 | . . . 9 . Terminals 5 | . . . 5 . Track 2 | . . . 2 . Assimilate 1 | . . . 1 . Botnet 2 | . . . 2 . Fabricators . | . . . . . Repair Stations . | . . . . . Recycling Units 4 | . . . 4 . Monitor 1 | . . . 1 . Reject 1 | . . . 1 . Recyclers 1 | . . . 1 . Mask 1 | . . . 1 . Scanalyzers . | . . . . . Garrison Access . | . . . . . Data Cores Recovered . | . . . . . Used . | . . . . . Hacking Detections 10 | . 1 2 7 . Full Trace Events 3 | . . 1 2 . Feedback Events . | . . . . . Feedback Blocked . | . . . . . Robot Schematics Acquired . | . . . . . Robots Built . | . . . . . Authchips . | . . . . . Time . | . . . . . Total Robot Build Rating . | . . . . . Part Schematics Acquired 4 | . . 4 . . Parts Built . | . . . . . Authchips . | . . . . . Time . | . . . . . Total Part Build Rating . | . . . . . Parts Repaired 1 | . . . 1 . Time 51 | . . . 51 . Parts Recycled . | . . . . . Recycled Matter . | . . . . . Retrieved Matter . | . . . . . Retrieved Components 2 | . . . 2 . Parts Scanalyzed 4 | . . 4 . . Part Schematics Acquired 4 | . . 4 . . Parts Damaged . | . . . . . Bothacking | -11 -10 -9 -9 -9 ------------ Run | Scr Mat Mat Sto Gar Used RIF Installer . | . . . . . Robots Hacked . | . . . . . Non-combat . | . . . . . Combat . | . . . . . Robot Hacks Applied . | . . . . . Relay Couplers Released . | . . . . . Fabnet Peak Effective % . | . . . . . Robots Rewired . | . . . . . Allies Hacked . | . . . . . Hacks Repelled . | . . . . . Allies | -11 -10 -9 -9 -9 -------- Run | Scr Mat Mat Sto Gar Total Allies 2 | . . . 2 . Largest Group 2 | . . . 2 2 Highest-Rated Group 105 | . . . 105 105 Highest-Rated Ally 100 | . . . 100 95 Total Orders 1 | . . . . 1 STAY 1 | . . . . 1 Ally Attacks 42 | . . . 42 . Total Damage 1202 | . . . 1202 . Kills 18 | . . . 18 . Allies Corrupted . | . . . . . Allies Melted . | . . . . . Intel | -11 -10 -9 -9 -9 ------- Run | Scr Mat Mat Sto Gar Robot Analysis Total 1 | . . . 1 . Derelict Logs Recovered . | . . . . . Drone Launches . | . . . . . Drone Recoveries . | . . . . . Exploration | -11 -10 -9 -9 -9 ------------- Run | Scr Mat Mat Sto Gar Turns Passed 1857 | 76 147 712 712 210 Spaces Moved 1166 | 54 151 378 457 126 Core 3 | 3 . . . . Treads 155 | . . 98 57 . Legs 61 | 51 . . . 10 Wheels 947 | . 151 280 400 116 Hover . | . . . . . Flight . | . . . . . Fastest Speed 50 | 50 90 90 90 80 Average Speed 107 | 116 90 108 111 108 Slowest Speed 240 | 120 90 240 160 130 Overloaded Moves . | . . . . . Propulsion Burnouts . | . . . . . Robots Hopped . | . . . . . Cave-ins Triggered . | . . . . . Exploration Rate (%) 37 | 4 36 31 87 31 Regions Visited 4 Branch Regions 1 Pre-discovered Areas . | . . . . . Known Exits Taken 2 | . . 1 1 . Unknown Exits Taken 2 | 1 1 . . . Scrap Searched . | . . . . . Spaces Dug . | . . . . . Terrain Destroyed . | . . . . . Melee . | . . . . . Projectile . | . . . . . AOE . | . . . . . Terrain Rammed . | . . . . . Walls Destroyed . | . . . . . Machines Disabled . | . . . . . Actions | -11 -10 -9 -9 -9 --------- Run | Scr Mat Mat Sto Gar Total 1553 | 65 162 557 601 168 Wait 173 | . . 70 100 3 Move 1163 | 53 150 377 457 126 Hop . | . . . . . Pick Up 26 | 8 4 8 4 2 Fast Attach 17 | 4 1 10 1 1 Attach 8 | . 1 . 1 6 Detach 6 | . . 3 . 3 Swap 32 | . 2 23 6 1 Drop 18 | . 4 9 4 1 Fire 108 | . . 57 28 23 Melee . | . . . . . Ram 1 | . . . . 1 Kick 1 | . . . . 1 Crush . | . . . . . Escape Stasis . | . . . . . Rewire . | . . . . . Trap . | . . . . . Miscellaneous . | . . . . . Route ------- -11/Scrapyard -10/Materials (discovered 2 exits: *Mat / [*Min]) -9/Materials (discovered 6 exits: [*Mat x2] / *Min x2 / *Sto x2) -9/Storage (discovered 3 exits: [*Mat] / [*Rec] / Gar) -9/Garrison History --------- Turn | Location | Event 11 | -11/Scrapyard | Discovered new exit (range 15) 77 | -11/Scrapyard | Entered Materials 102 | -10/Materials | Discovered new exit (range 7) 211 | -10/Materials | Discovered new exit (range 8) 224 | -10/Materials | Entered another Materials area 224 | -9/Materials | Evolved 2 slots: Utility x2 278 | -9/Materials | Identified exit to Mines 278 | -9/Materials | Identified exit to Storage 302 | -9/Materials | Build established: Mutant 619 | -9/Materials | Discovered new exit (range 15) 882 | -9/Materials | Discovered new exit (range 15) 936 | -9/Materials | Entered Storage 1135 | -9/Storage | Met 01-MTF 1215 | -9/Storage | Repaired Adv. Beam Cannon 1395 | -9/Storage | Discovered new exit (range 5) 1558 | -9/Storage | Discovered new exit (range 14) 1572 | -9/Storage | Used back door to open Recycling access 1647 | -9/Storage | Identified exit to Garrison 1648 | -9/Storage | Entered Garrison 1648 | -9/Garrison | Accompanied by 2 allies (01-MTF) 1653 | -9/Garrison | 01-MTF left 1794 | -9/Garrison | Core integrity fell below 50% 1824 | -9/Garrison | Core integrity fell below 20% 1844 | -9/Garrison | Lost 3 parts (1n1u1w) 1858 | -9/Garrison | Destroyed by G-34 Mercenary with Small Laser Last Messages --------------- 01813_ Adv. Beam Cannon destroyed. 01818_ Destroyed Flight Unit. 01824_ S-10 Pest destroyed. 01828_ Flight Unit melted. 01828_ S-10 Pest destroyed. 01838_ Hvy. Ion Engine broken. 01838_ Overheating: Short circuit. 01840_ Cryofiber Web broken. 01840_ Overheating: Short circuit. 01841_ Overheating: Titanium Leg damaged (-7). 01842_ Acquired Lgt. Ion Engine. 01845_ Kicked G-47 Trooper out of the way. 01845_ Titanium Leg destroyed. 01846_ Acquired 19 matter. 01846_ Acquired 14 matter. 01847_ Shield Generator destroyed. 01850_ Overheating: Matter decay (-30). 01851_ Adv. Beam Cannon destroyed. 01852_ Acquired 15 matter. 01855_ Slammed into G-34 Mercenary. Map ----- +----------------------------------------------------+ | ?????????????????????????????????????????????????? | | ?????????????????????????????????????????????????? | | ?????????????????????????????????????????????????? | | ?????????????????????????????????????????????????? | | ?????????????????????????????????????????????????? | | ?????????????????????????????????????????????????? | | ?????????????????????????????????????????????????? | | ?????????????????????????????????????????????????? | | ?????????????????????????????????????????????????? | | ?????????????????????????????????????????????????? | | ?????????????????????????????????????????????????? | | ????????????????????????????????##+##????????????? | | ????????????????????????????????# !!####?????????? | | ????????????????????????######### +?????????? | | ????????????????????????# / +?????????? | | ????????????????????????# ####### !!# #?????????? | | ????????????????????????# #?????##### #?????????? | | ????????????????????????# #??????????? #?????????? | | ????????????????????????# #??????????? #?????????? | | ????????????????????????# #????????????#?????????? | | ??????????????????????###;###########++####++##### | | ??????????????????????# ^ | | ??????????????????????# | | ??????????????????????# %[ | | ??????????????????????# s##+#### ############### | | ??????????????????????# @##=#??# #?????????????? | | ??????????????????????# ## #??# #?????????????? | | ??????????????????????# g ##[#??# #?????????????# | | ??????????????????????# = ## #### ##??????##### # | | ??????????????????????# !=##* + | | ??????????????????????#=!g## #### | | ????????????????# ## =g; #??# #???# #####! | | ???????????# %%*!####??# #???????????#! | | ?????????? =%== ???? #???????????#!! | | ?????????? =% ?? #???????????##? | | ??????????## ## ##= #####?####?????????????? | | ???????????# ???# ?# #??????????????????????? | | ??????????????? ?? ??????????????????????? | | ????????????? ? ??????????????????????? | | ???????????? ? "?????????????????????? | | ???????????" ? "%?????????????????????? | | ???????????? ## ? ## ###????????????????????? | | ???????????? ?#? ?# #??????????????????????? | | ?????????????????? ?? #??????????????????????? | | ?????????????????? ?? #??????????????????????? | | ?????????????????? ??? #??????????????????????? | | ??????????????????????# ???????????????????????? | | ??????????????????????? ???????????????????????? | | ?????????????????????????????????????????????????? | | ?????????????????????????????????????????????????? | +----------------------------------------------------+ Best States ------------- Heat Dissipation 28 Energy Generation 14 Energy Capacity 280 Matter Stores 300 Matter Capacity 300 Sight Range 16 Terrain Scan Density 10 Base Temperature (-) 100 Core Shielding 20 Weapon Shielding 66 Evasion (%) 55 Targeting Accuracy 8 Recoil Reduction 2 Offensive Hacking 10 Item Schematics ----------------- Titanium Leg | -9/Materials | Scanalyzed Imp. Treads | -9/Materials | Scanalyzed Datajack | -9/Materials | Scanalyzed Assault Rifle | -9/Materials | Scanalyzed Robot Schematics ------------------ None Fabricated ------------ Nothing Alien Tech Used ----------------- None Achievements -------------- None Challenges ------------ None Game ------ Seed GuidanceAntigravKatana Manual? 0 Play Time 00:25:52 Cumulative 947.0 hours Start 2022.11.23 @ 14:56:05 End 2022.11.23 @ 15:18:21 Sessions 1 Manual Loads 0 Difficulty Rogue Special Mode None Game No. 371 Rogue 371 Adventurer 0 Explorer 0 Win Type - Total 13 Types 12/0/1/0/0/0/0/0/0 Lore% 71 Gallery% 81 Achievement% 70 Wizard Run 0 Options --------- ASCII 0 Keyboard 1 Movement Numpad Keybinds 0 Fullscreen 2 Font 18/SmallcapsGlow Map View 112x50 Tactical HUD 1 Map Filters NONE Filters NONE Steam 1 RUN: 88318d7d-bc14-43fc-88dc-07d19eb36821